Cogmind - Beta 15 @@@ ROGUE MODE // 2025.05.15 @ 22:10:03 Player: Rubbe Result: Destroyed by G-34 Mercenary with Small Laser Performance ------------- Evolutions (0) 0 Regions Visited (1) 200 Robots Destroyed (5) 25 Value Destroyed (75) 75 Prototype IDs (0) 0 Alien Tech Used (0) 0 Bonus (0) 0 TOTAL SCORE: 300 Bonus ------- None Cogmind --------- Core Integrity 0/250 Matter 293/300 Energy 100/100 System Corruption 0% Temperature Cool (12) Movement Core (200) Ox3 Location -10/Materials Parts ------- > --- POWER (1) -------- (None) > --- PROPULSION (2) --- (None) > --- UTILITY (2) ------ Small Storage Unit > --- WEAPON (2) ------- Heavy Hammer Heavy Hammer > --- INVENTORY (8) ---- Ion Engine Ion Engine Light Ion Engine Light Armor Plating Light Assault Rifle Grenade Launcher Peak State ------------ > --- POWER ------------ (None) > --- PROPULSION ------- (None) > --- UTILITY ---------- Small Storage Unit Light Armor Plating > --- WEAPON ----------- Heavy Hammer Heavy Hammer > --- INVENTORY -------- Ion Engine Ion Engine Light Ion Engine Light Armor Plating Light Assault Rifle Grenade Launcher [Rating: 6] Favorites ----------- Power None Propulsion Aluminum Leg Leg Aluminum Leg Utility Small Storage Unit Storage Small Storage Unit Protection Light Armor Plating Weapon Small Laser Energy Gun Small Laser Impact Weapon Heavy Hammer Build | -11 -10 ------- Run | Yrd Mat Slots Evolved . | . . Power . | . . Propulsion . | . . Utility . | . . Weapon . | . . Parts Attached 8 | 5 3 Power . | . . Engine . | . . Core . | . . Reactor . | . . Propulsion 2 | 2 . Treads . | . . Leg 2 | 2 . Wheel . | . . Hover . | . . Flight . | . . Utility 2 | 1 1 Device . | . . Storage 1 | 1 . Processor . | . . Hackware . | . . Protection 1 | . 1 Artifact . | . . Weapon 4 | 2 2 Energy Gun 2 | 2 . Energy Cannon . | . . Ballistic Gun . | . . Ballistic Cannon . | . . Launcher . | . . Special Weapon . | . . Impact Weapon 2 | . 2 Slashing Weapon . | . . Piercing Weapon . | . . Special Melee Weapon . | . . Unidentified Prototypes . | . . Parts Lost 5 | . 5 Power . | . . Propulsion 2 | . 2 Utility 1 | . 1 Weapon 2 | . 2 Highest Loss Streak 5 | . 5 To Critical Strikes . | . . Average Backups 4 | 2 5 Power 1 | . 2 Propulsion . | . . Utility 1 | . 1 Weapon 1 | . 1 Tool/Special . | . . Unused Backups 6 | . 6 Power 3 | . 3 Propulsion . | . . Utility 1 | . 1 Weapon 2 | . 2 Tool/Special . | . . Average Slot Usage (%) 67 | . 67 Leg 25 | . 25 Storage 14 | . 14 Energy Gun 23 | . 23 Impact Weapon 2 | . 2 Peak Build Rating 6 | 5 6 Average Rating 4 | 2 4 On Entrance 2 | . 5 Naked Turns . | . . Heaviest Build 14 | 8 14 Greatest Support 20 | 20 20 Greatest Overweight (x) 4 | . 4 Average Overweight (x) . | . . Largest Inventory Capacity 8 | 8 8 Average Capacity 7 | 6 8 Most Carried 8 | 5 8 Average Carried 5 | 2 5 Final Capacity 8 | 8 8 Final Carried 6 | 3 6 Class Distribution -------------------- 100% | Mutant Dominant Class ---------------- Mutant | -10/Materials Resources | -11 -10 ----------- Run | Yrd Mat Matter Collected 263 | 250 13 Remotely . | . . Salvage Created 98 | . 98 Parts 10 | . 10 Haulers Intercepted . | . . Recyclers Shooed . | . . Parts Field Recycled . | . . Retrieved Matter . | . . Parts Self-Destructed . | . . Prevented . | . . Kills | -11 -10 ------- Run | Yrd Mat Combat Hostiles Destroyed 3 | . 3 Melee 2 | . 2 Guns 1 | . 1 Classes Destroyed 4 | . 4 Builder 1 | . 1 Watcher 1 | . 1 Swarmer 2 | . 2 Grunt 1 | . 1 Best Kill Streak 2 | . 2 Combat Bots Only 2 | . 2 Max Kills in Single Turn 1 | . 1 Gunslinging . | . . Exploded . | . . Melee 1 | . 1 Uniques/NPCs Destroyed . | . . Combat | -11 -10 -------- Run | Yrd Mat Hostile Shots Fired 129 | . 129 Missed 35 | . 35 Hits 94 | . 94 Projectile 94 | . 94 Damage Taken 876 | . 876 Core 261 | . 261 Absorbed by Shields . | . . Core Remaining (%) 100 | 100 . Volleys Fired 10 | . 10 Largest 2 | . 2 Hottest 80 | . 80 Shots Fired 19 | . 19 Gun 19 | . 19 Cannon . | . . Launcher . | . . Special . | . . Kinetic . | . . Thermal 10 | . 10 Explosive . | . . Electromagnetic 9 | . 9 Robot Hit Streak 5 | . 5 Robot Miss Streak 2 | . 2 Penetration Max . | . . Secondary Targets . | . . Shots Hit Robots 11 | . 11 Core Hits 6 | . 6 Critical Kills . | . . Critical Parts Destroyed . | . . Critical Strikes 1 | . 1 Corrupt 1 | . 1 Melee Attacks 4 | . 4 Impact 4 | . 4 Slashing . | . . Piercing . | . . Sneak Attacks . | . . Combat Hostiles . | . . Follow-up Attacks 1 | . 1 Damage Inflicted 219 | . 219 Guns 156 | . 156 Cannons . | . . Explosions . | . . Melee 63 | . 63 Ramming . | . . Kinetic . | . . Thermal 80 | . 80 Explosive . | . . Electromagnetic 76 | . 76 Impact 63 | . 63 Slashing . | . . Piercing . | . . Highest Corruption . | . . Average Corruption . | . . Corruption Purged . | . . Corruption Blocked . | . . Overload Shots . | . . Overflow Damage . | . . Projectiles . | . . Explosions . | . . Melee . | . . Knockbacks . | . . Impact . | . . Kinetic . | . . Secondary . | . . Self-Inflicted Damage . | . . Shots . | . . Rammed . | . . Targets Rammed . | . . Kicked . | . . Crushed . | . . Highest Temperature 15 | . 15 Average Temperature 5 | . 5 Received Heat Transfer 246 | . 246 Siege Activations . | . . Martial Activations . | . . Shielding Activations . | . . Robots Disrupted . | . . Combat Hostiles . | . . Robots Corrupted . | . . Combat Hostiles . | . . Parts Fried . | . . Impact Corruptions . | . . Robots Melted . | . . Combat Hostiles . | . . Parts Melted . | . . Heat Transferred 175 | . 175 Parts Sabotaged . | . . Parts Stolen . | . . Parts Stripped . | . . Power Chain Reactions . | . . Alert | -11 -10 ------- Run | Yrd Mat Maximum Alert Level . | . . Low Security (%) 100 | 100 100 Level 1 . | . . Level 2 . | . . Level 3 . | . . Level 4 . | . . Level 5 . | . . High Security . | . . Max Security . | . . Peak Influence 40 | . 40 Initial . | . . Average 3 | . 3 Influence Increases 111 | . 111 Destroy 0b10 Robot/C 60 | . 60 Destroy 0b10 Robot/NC 10 | . 10 Destroy Leader 22 | . 22 Successful Hack 4 | . 4 Lose Combat Pursuer 15 | . 15 Influence Decreases 71 | . 71 Time Decay 51 | . 51 Lost Part 20 | . 20 Squads Dispatched 4 | . 4 Investigation 1 | . 1 Extermination . | . . Reinforcement 3 | . 3 Assault . | . . Garrison . | . . Intercept . | . . Searches Triggered . | . . Construction Impeded . | . . Haulers Reinforced . | . . Active Scanning Responses . | . . Cargo Convoy Interrupts . | . . Stealth | -11 -10 --------- Run | Yrd Mat Distress Signals . | . . Communications Jammed . | . . Distress Signals . | . . Times Spotted 15 | . 15 Peak Tracking Total 9 | . 9 Tactical Retreats 1 | . 1 Traps | -11 -10 ------- Run | Yrd Mat Traps Triggered . | . . Indirectly . | . . Trap Hack Attempts . | . . Triggered . | . . Disarmed . | . . Reprogrammed . | . . Reused . | . . Traps Extracted . | . . Installed . | . . Triggered . | . . Machines | -11 -10 ---------- Run | Yrd Mat Machines Disabled . | . . Max in Single Turn . | . . Machines Repaired . | . . Machines Dismantled . | . . Machines Sabotaged . | . . Overloaded Fab Kills . | . . Hacking | -11 -10 --------- Run | Yrd Mat Machines Accessed 1 | . 1 Terminals 1 | . 1 Fabricators . | . . Repair Stations . | . . Recycling Units . | . . Scanalyzers . | . . Garrison Access . | . . Total Hacks 6 | . 6 Successful 3 | . 3 Failed 3 | . 3 Catastrophic . | . . Database Lockouts . | . . Manual . | . . Terminals 6 | . 6 Fabricators . | . . Repair Stations . | . . Recycling Units . | . . Scanalyzers . | . . Garrison Access . | . . Terminal Hacks 3 | . 3 Record 3 | . 3 Fabricator Hacks . | . . Repair Station Hacks . | . . Recycling Unit Hacks . | . . Scanalyzer . | . . Garrison Access Hacks . | . . Unauthorized Hacks . | . . Terminals . | . . Fabricators . | . . Repair Stations . | . . Recycling Units . | . . Scanalyzers . | . . Garrison Access . | . . Data Cores Recovered . | . . Used . | . . Hacking Detections 1 | . 1 Full Trace Events 1 | . 1 Feedback Events . | . . Feedback Blocked . | . . Robot Schematics Acquired . | . . Robots Built . | . . Authchips . | . . Time . | . . Total Robot Build Rating . | . . Part Schematics Acquired . | . . Parts Built . | . . Authchips . | . . Time . | . . Total Part Build Rating . | . . Parts Repaired . | . . Time . | . . Parts Recycled . | . . Recycled Matter . | . . Retrieved Matter . | . . Retrieved Components . | . . Parts Scanalyzed . | . . Part Schematics Acquired . | . . Parts Damaged . | . . Bothacking | -11 -10 ------------ Run | Yrd Mat Used RIF Installer . | . . Robots Hacked . | . . Non-combat . | . . Combat . | . . Robot Hacks Applied . | . . Relay Couplers Released . | . . Fabnet Peak Effective % . | . . Robots Rewired . | . . Allies Hacked . | . . Hacks Repelled . | . . Allies | -11 -10 -------- Run | Yrd Mat Total Allies . | . . Largest Group . | . . Highest-Rated Group . | . . Highest-Rated Ally . | . . Total Orders . | . . Ally Attacks . | . . Total Damage . | . . Kills . | . . Allies Corrupted . | . . Allies Melted . | . . Intel | -11 -10 ------- Run | Yrd Mat Active Infowar (turns) . | . . Robot Analysis Total . | . . Derelict Logs Recovered . | . . Drone Launches . | . . Drone Recoveries . | . . Exploration | -11 -10 ------------- Run | Yrd Mat Turns Passed 268 | 46 222 Spaces Moved 183 | 41 142 Core 27 | 22 5 Treads . | . . Legs 156 | 19 137 Wheels . | . . Hover . | . . Flight . | . . Fastest Speed 50 | 50 120 Average Speed 114 | 82 123 Slowest Speed 250 | 120 250 Overloaded Moves . | . . Propulsion Burnouts . | . . Robots Hopped . | . . Potential Cave-ins . | . . Cave-ins Triggered . | . . Exploration Rate (%) 19 | 3 35 Regions Visited 1 Branch Regions . Pre-discovered Areas . | . . Known Exits Taken . | . . Unknown Exits Taken 1 | 1 . Scrap Searched . | . . Spaces Dug . | . . Terrain Destroyed . | . . Melee . | . . Projectile . | . . AOE . | . . Terrain Rammed . | . . Walls Destroyed . | . . Machines Disabled . | . . Actions | -11 -10 --------- Run | Yrd Mat Total 217 | 53 164 Wait . | . . Move 182 | 40 142 Hop . | . . Pick Up 14 | 8 6 Fast Attach . | . . Attach 8 | 5 3 Detach . | . . Swap . | . . Drop . | . . Fire 10 | . 10 Melee 3 | . 3 Ram . | . . Kick . | . . Crush . | . . Escape Stasis . | . . Rewire . | . . Trap . | . . Miscellaneous . | . . Route ------- -11/Scrapyard -10/Materials History --------- Turn | Location | Event 7 | -11/Scrapyard | Discovered new exit (range 16) 47 | -11/Scrapyard | Entered Materials 259 | -10/Materials | Core integrity fell below 50% 264 | -10/Materials | Core integrity fell below 20% 269 | -10/Materials | Destroyed by G-34 Mercenary with Small Laser Last Messages --------------- U-05 Engineer works on Matter Filter. K-01 Serf collects debris. S-10 Pest destroyed. U-05 Engineer works on Matter Filter. K-01 Serf collects debris. Acquired Lgt. Ion Engine. Sml. Laser destroyed. K-01 Serf collects debris. Acquired Hvy. Hammer. Aluminum Leg destroyed. K-01 Serf collects debris. Acquired Hvy. Hammer. Aluminum Leg destroyed. Lgt. Armor Plating destroyed. Hvy. Hammer follow-up attack on S-10 Pest. S-10 Pest destroyed. Acquired 13 matter. R-06 Scavenger collects Lgt. Assault Rifle. G-34 Mercenary destroyed. R-06 Scavenger collects Sml. Laser. Map ----- +----------------------------------------------------+ | | | | | | | | | | | | | | | | | | | | | | | ???????????????????????????????????????????????? | | ???????????????????????????????????????????????? | | ???????????????????????????????????????????????? | | ???????????????????????????????????????????????? | | ???????????????????????????????????????????????? | | ???????????????????#+##????????????????????????? | | ???????????????????# ????????????????????????? | | ???????????????????# ????????????????????????? | | ???????????????????# #???????????????????????? | | ???????????????????# #???????????????????????? | | ???????????????????# #####???????????????????? | | ???????????????????# ==#???????????????????? | | ???????????????????# ! ==#???????????????????? | | ???????????????????# g % !!#???????????????????? | | ?????????# ????????# g @ g!#???????????????????? | | ?????????# ####### g r //#???????????????????? | | ?????????+ T s #???????????????????? | | ?????????# ^ #####???????? ?????????? | | ?????????# ^ ##########?? #????????? | | ?????????###### """ # #?? #????????? | | ??????????????# """ # " #?? #????????? | | ??????????????# """ # " #? #????????? | | ?????????+ /% " #? #????????? | | ??????????##### #= #? #????????? | | ??????????????###### # #? ##???????? | | ???????????????????# # [ !#? ########? | | ???????????????????# # ! #? #? | | ???????????????????#t # ## #? | | ???????????????????# ##/######## #? | | ???????????????????# #? | | ???????????????????# #? | | ???????????????????# "" #? | | ???????????????????# "T """ """ "? | | ???????????????????# "" """ """ ???? | | ???????????????????# [! """ """ T? | | ???????????????????# [! """ """ "" | | ????????????????? ! "" | | ????????????????? #? | | ???????????????? """ """ """ #? | +----------------------------------------------------+ Best States ------------- Heat Dissipation 25 Energy Generation 5 Energy Capacity 100 Matter Stores 300 Matter Capacity 300 Sight Range 16 Terrain Scan Density 10 Armor Coverage 150 Evasion (%) 55 Item Schematics ----------------- None Robot Schematics ------------------ None Fabricated ------------ Nothing Repaired ---------- Nothing Alien Tech Used ----------------- None Achievements -------------- None Challenges ------------ None Game ------ Seed BoreMagneticRay Manual? 0 Play Time 00:05:12 Cumulative 8.9 hours Start 2025.05.15 @ 21:58:14 End 2025.05.15 @ 22:10:03 Sessions 2 Manual Loads 0 Difficulty Rogue Special Mode None Game No. 36 Rogue 36 Adventurer 0 Explorer 0 Win Type - Total 0 Types 0/0/0/0/0/0/0/0/0/0 Lore% 6 Gallery% 15 Achievement% 18 Wizard Run 0 Options --------- Layout 1 ASCII 0 Keyboard 0 Movement Mouse Keybinds 0 Fullscreen 1 Font 24/Smallcaps Map View 50x35 Zoom Use 0% Tactical HUD 0 Map Filters NONE Filters NONE Steam 1 RUN: 0c91b8fd-a0fb-4413-bc84-48f4c86198ad